bitfinex-derivatives/quotes_ETHF0:USTF0_20241023
["timestamp","ask_amount","ask_price","bid_price","bid_amount"]
[1729694150145,0.38769,2581.1,2581.0,0.38768]
[1729694150341,0.38771,2581.0,2580.9,0.3877]
[1729694150551,4.6608677,2581.1,2581.0,0.38769]
[1729694150741,1.00918,2581.1,2581.0,0.38769]
[1729694150946,5.2823677,2581.1,2581.0,0.38769]
[1729694152154,0.38769,2581.0,2580.9,40.8]
[1729694152354,4.26209,2581.0,2580.9,40.8]
[1729694152547,4.26209,2581.0,2580.3,1.055]
[1729694152548,0.96933,2580.8,2580.2,3.2078]
[1729694152855,0.96933,2580.8,2580.5,0.38776]
[1729694152856,0.38777,2580.6,2580.5,0.38776]
[1729694153049,0.38777,2580.6,2580.5,41.18776]
[1729694153247,4.56897322,2580.6,2580.5,41.18776]
[1729694153752,4.56895322,2580.6,2580.5,0.38776]
[1729694153949,5.19525322,2580.6,2580.5,0.38776]
[1729694154545,4.80750322,2580.6,2580.5,0.38776]
[1729694155647,4.80750322,2580.6,2580.3,40.8]
[1729694155843,5.19526322,2580.6,2580.5,0.38777]
[1729694156457,5.19526322,2580.6,2580.4,0.38778]
[1729694156458,0.38778,2580.5,2580.4,0.38778]
[1729694156861,4.80750322,2580.6,2580.5,0.38777]
[1729694157557,4.18120322,2580.6,2580.5,0.38777]
[1729694157954,0.6075,2580.7,2580.4,1.0437]
[1729694158147,0.6075,2580.7,2580.6,0.38775]
[1729694160458,3.8153,2580.7,2580.6,0.38775]
[1729694160661,3.2078,2580.7,2580.6,0.38775]
[1729694167359,3.2078,2580.7,2580.3,41.0463]
[1729694167360,3.2078,2580.7,2580.5,0.38776]
[1729694167666,0.99956,2580.6,2580.5,0.38777]
[1729694167865,0.99956,2580.6,2580.3,40.8]
[1729694167866,1.1842,2580.6,2580.3,40.8]
[1729694168061,0.38778,2580.4,2580.3,40.8]
[1729694168265,6.2378,2580.5,2579.7,3.2078]
[1729694168266,10.113,2580.5,2579.7,3.2078]
[1729694168568,3.03,2579.8,2579.1,3.2078]
[1729694168762,3.03,2579.4,2578.8,3.2078]
[1729694168952,0.38791,2579.6,2579.0,3.99998]
[1729694169156,0.38791,2579.6,2579.5,0.38791]
[1729694169355,0.38791,2579.6,2579.4,0.38792]
[1729694169562,0.38792,2579.5,2579.1,41.4276]
[1729694169875,0.38791,2579.6,2579.5,0.38791]
[1729694170052,4.7963,2579.7,2579.5,0.38791]
[1729694170469,0.3879,2579.6,2579.5,0.38791]
[1729694170765,0.38793,2579.5,2579.3,0.38794]
[1729694170960,0.38793,2579.5,2579.4,0.38793]
[1729694171264,0.38793,2579.5,2579.1,40.8]
[1729694171265,4.28496445,2579.5,2579.2,0.38795]
[1729694171458,4.28496445,2579.5,2579.1,40.8]
[1729694171459,0.38796,2579.2,2579.1,41.18797]
[1729694171867,9.26955726,2579.2,2579.1,40.8]
[1729694172056,8.88159726,2579.2,2578.7,0.38803]
[1729694172361,8.88159726,2579.2,2578.4,0.97019]
[1729694172362,0.38802,2578.9,2578.8,0.38802]
[1729694172566,0.38802,2578.9,2578.8,40.8]
[1729694173061,8.72783862,2578.9,2578.8,40.8]
[1729694173464,11.93563862,2578.9,2578.8,41.18802]
[1729694173666,11.93563862,2578.9,2578.8,40.8]
[1729694173866,11.93563862,2578.9,2578.8,41.18802]
[1729694174064,11.93563862,2578.9,2578.8,40.8]
[1729694174862,14.96563862,2578.9,2578.8,40.8]
[1729694175063,14.96563862,2578.9,2578.2,0.38811]
[1729694175064,0.38808,2578.5,2578.2,0.38811]
[1729694175266,0.38809,2578.4,2578.3,0.3881]
[1729694175465,4.92486996,2578.4,2578.0,0.38814]
[1729694175668,0.38814,2578.1,2578.0,0.38814]
[1729694175870,0.38814,2578.1,2577.9,0.38815]
[1729694176173,4.24975783,2578.1,2577.6,6.76737177]
[1729694176374,3.03,2577.9,2577.6,6.76737177]
[1729694176684,0.38815,2578.0,2577.8,0.38817]
[1729694177070,4.03544402,2577.9,2577.8,0.38817]
[1729694177674,4.73000361,2578.0,2577.8,0.38817]
[1729694177868,0.38815,2578.0,2577.8,0.38817]
[1729694178068,4.34185361,2577.9,2577.8,0.38817]
[1729694178573,4.69948071,2578.0,2577.8,0.38817]
[1729694178775,4.31133071,2578.0,2577.8,0.38817]
[1729694178962,3.03,2578.1,2578.0,0.38814]
[1729694179363,7.34133071,2578.1,2578.0,0.38814]
[1729694179967,4.31133071,2578.1,2578.0,0.38814]
[1729694180683,3.2078,2578.3,2578.2,0.38811]
[1729694182676,0.6156,2578.5,2578.4,0.38808]
[1729694183073,4.90274582,2578.5,2578.4,0.38808]
[1729694185684,3.826,2578.7,2578.1,6.2378]
[1729694185884,3.2078,2578.7,2578.6,0.38805]
[1729694186187,0.6191,2578.9,2578.3,0.97022]
[1729694186388,7.26323124,2578.7,2578.6,0.38805]
[1729694186586,3.03,2578.7,2578.6,41.18805]
[1729694186885,7.29546793,2578.7,2578.6,41.18805]
[1729694187093,11.56110793,2578.7,2578.6,41.18805]
[1729694187384,11.17306793,2578.7,2578.6,41.18805]
[1729694188180,11.56110793,2578.7,2578.6,41.18805]
[1729694189685,11.56110793,2578.7,2578.6,40.8]
[1729694190287,11.56110793,2578.7,2578.6,41.18805]
[1729694190481,11.56110793,2578.7,2578.6,40.8]
[1729694190687,12.16540793,2578.7,2578.6,40.8]
[1729694191286,0.38807,2578.5,2578.4,0.38808]
[1729694191487,2.85069509,2578.5,2578.4,0.38808]
[1729694191684,7.19316016,2578.5,2578.4,0.38808]
[1729694191887,7.58123016,2578.5,2578.4,0.38808]
[1729694193196,7.19316016,2578.5,2578.4,0.38808]
[1729694193397,7.58123016,2578.5,2578.4,0.38808]
[1729694195092,7.19316016,2578.5,2578.4,0.38808]
[1729694195701,7.58123016,2578.5,2578.4,0.38808]
[1729694196301,0.38809,2578.4,2578.3,0.38808]
[1729694196494,0.38809,2578.4,2578.0,4.17816]
[1729694196495,0.38811,2578.3,2578.2,0.3881]
[1729694196687,3.41812,2578.2,2578.1,0.38813]
[1729694196893,4.56962,2578.2,2578.1,0.38813]
[1729694197098,8.7650655,2578.2,2578.1,0.38813]
[1729694201194,0.38815,2578.1,2578.0,0.38813]
[1729694201598,4.71735813,2578.1,2578.0,0.38813]
[1729694202505,4.32920813,2578.1,2578.0,0.38813]
[1729694202798,4.71733813,2578.1,2578.0,0.38813]
[1729694203006,4.32920813,2578.1,2578.0,0.38813]
[1729694206204,4.56962,2578.2,2578.0,3.8792]
[1729694206205,0.5746,2578.2,2578.0,3.8792]
[1729694206400,3.2078,2578.3,2578.2,0.38811]
[1729694206605,0.38809,2578.4,2578.0,0.97036]
[1729694206804,0.38809,2578.4,2578.3,0.3881]
[1729694206997,4.25779409,2578.4,2578.3,0.3881]
[1729694207809,4.3696,2578.6,2578.2,0.97028]
[1729694208000,4.3696,2578.6,2578.5,0.38807]
[1729694208912,7.78765,2578.6,2578.5,0.38807]
[1729694209211,12.55121063,2578.6,2578.5,0.38807]
[1729694210501,0.3881,2578.4,2578.3,0.38808]
[1729694211201,12.16316063,2578.6,2578.1,0.97033]
[1729694211202,0.38808,2578.5,2578.4,0.38807]
[1729694211611,4.40716471,2578.5,2578.4,0.38807]
[1729694212918,4.40716471,2578.5,2577.9,0.8457]
[1729694212919,4.40716471,2578.5,2577.9,1.81608]
[1729694213210,3.03,2578.3,2578.2,0.38811]
[1729694213814,6.6259,2578.3,2578.2,0.38811]
[1729694214209,6.2378,2578.3,2578.2,0.38811]
[1729694214515,6.2378,2578.3,2578.2,0.99500077]
[1729694214809,6.6259,2578.3,2578.2,0.38811]
[1729694215316,6.6259,2578.3,2578.2,0.99499529]
[1729694215814,6.6259,2578.3,2578.2,0.38811]
[1729694216518,6.6259,2578.3,2578.2,0.99499481]
[1729694216811,6.6259,2578.3,2578.2,0.99499774]
[1729694217011,11.0633314,2578.3,2578.2,0.99499774]
[1729694219306,11.0633314,2578.3,2578.2,0.38811]
[1729694219615,11.0633314,2578.3,2578.2,0.99500262]
[1729694220606,11.0633314,2578.3,2578.2,0.99500355]
[1729694221219,11.0633314,2578.3,2578.2,0.38811]
[1729694223215,0.38816,2578.0,2577.9,0.38813]
[1729694223418,6.2378,2578.0,2577.9,0.38813]
[1729694223621,6.62594,2578.0,2577.9,0.38813]
[1729694223820,11.32084198,2578.0,2577.9,0.38813]
[1729694224416,11.32084198,2578.0,2577.7,0.38817]
[1729694224417,0.38819,2577.8,2577.7,0.38817]
[1729694224617,0.38821,2577.7,2577.6,0.38819]
[1729694224820,7.20951,2577.7,2577.6,0.38819]
[1729694225116,7.20951,2577.7,2577.5,0.38821]
[1729694225117,0.38822,2577.6,2577.5,0.38821]
[1729694225518,4.50778303,2577.6,2577.5,0.38821]
[1729694226719,4.50778303,2577.6,2577.4,41.18823]
[1729694226720,0.38822,2577.5,2577.4,41.18823]
[1729694226916,0.99272,2577.5,2577.4,41.18823]
[1729694227213,0.99272,2577.5,2577.2,0.38825]
[1729694227214,0.38827,2577.3,2577.2,0.38825]
[1729694227418,3.41827,2577.3,2577.2,0.38825]
[1729694227714,3.03,2577.3,2577.2,0.38825]
[1729694227915,3.2078,2577.4,2577.3,0.38825]
[1729694228117,3.2078,2577.4,2577.3,4.26825]
[1729694228316,3.2078,2577.8,2577.7,0.38819]
[1729694228619,7.25717038,2577.8,2577.7,0.38819]
[1729694228815,7.64534038,2577.8,2577.7,41.18819]
[1729694229115,11.52454038,2577.8,2577.7,40.8]
[1729694229312,0.38822,2577.5,2577.4,0.38823]
[1729694229613,7.41225186,2577.5,2576.8,1.94162]
[1729694229813,0.38829,2577.1,2577.0,0.38828]
[1729694230017,3.41828,2577.2,2577.1,0.38828]
[1729694230214,0.3883,2577.1,2577.0,0.38829]
[1729694230415,4.38225186,2577.1,2577.0,0.38829]
[1729694230614,7.41225186,2577.2,2576.9,40.8]
[1729694230812,0.38829,2577.1,2577.0,0.38828]
[1729694231012,4.61563839,2577.1,2577.0,0.38828]
[1729694231514,7.25734839,2577.1,2577.0,0.38828]
[1729694231710,7.64562839,2577.1,2577.0,0.38828]
[1729694232115,7.25734839,2577.1,2577.0,0.38828]
[1729694232618,4.22734839,2577.1,2577.0,0.38828]
[1729694232820,4.22734839,2577.1,2577.0,4.26908]
[1729694233120,0.5802,2577.3,2577.2,0.38827]
[1729694233719,3.2078,2577.5,2577.2,3.88]
[1729694233924,0.6137,2577.6,2577.2,0.97066]
[1729694234221,1.00191,2577.6,2577.5,0.38822]
[1729694234438,0.6137,2577.6,2577.5,0.38822]
[1729694234619,4.86994607,2577.6,2577.5,0.38822]
[1729694236120,5.25814607,2577.6,2577.5,0.38822]
[1729694236721,4.86994607,2577.6,2577.5,0.38822]
[1729694236921,5.25814607,2577.6,2577.5,0.38822]
[1729694237219,4.86994607,2577.6,2577.5,0.38822]
[1729694239121,5.25814607,2577.6,2577.5,0.38822]
[1729694240023,4.86994607,2577.6,2577.5,0.38822]
[1729694240829,5.25814607,2577.6,2577.5,0.38822]
[1729694241121,4.86994607,2577.6,2577.5,0.38822]
[1729694242124,5.25814607,2577.6,2577.5,0.38822]
[1729694243637,4.86994607,2577.6,2577.5,0.38822]
[1729694243824,5.25814607,2577.6,2577.5,0.38822]
[1729694244131,4.86994607,2577.6,2577.5,0.38822]
[1729694244425,5.25814607,2577.6,2577.5,0.38822]
[1729694249422,4.86994607,2577.6,2577.5,0.38822]
[1729694249625,3.2078,2577.8,2577.5,3.88]
[1729694249825,3.41818,2577.8,2577.7,0.38819]
[1729694250027,3.41818,2577.8,2577.5,0.38821]
[1729694250028,0.38822,2577.6,2577.5,0.38821]
[1729694250333,0.38822,2577.6,2577.4,0.38822]
[1729694250334,0.38823,2577.5,2577.4,0.38822]
[1729694250736,1.01123,2577.5,2577.4,0.38822]
[1729694252023,5.27578342,2577.5,2577.4,0.38822]
[1729694252426,4.88755342,2577.5,2577.0,0.286]
[1729694252628,4.88755342,2577.5,2576.9,41.77076]
[1729694252629,0.38828,2577.2,2577.1,0.38827]
[1729694252827,0.3883,2577.1,2577.0,0.38829]
[1729694253133,5.94494168,2577.1,2577.0,0.38829]
[1729694253330,5.94494168,2577.1,2576.9,40.8]
[1729694253523,5.94494168,2577.1,2577.0,0.3883]
[1729694255528,0.3883,2577.0,2576.9,41.18831]
[1729694255837,0.3883,2577.0,2576.9,40.8]
[1729694255838,7.89223567,2577.0,2576.9,40.8]
[1729694256034,11.77303567,2577.0,2576.9,41.18831]
[1729694256540,7.89223567,2577.0,2576.9,41.18831]
[1729694257952,7.50393567,2577.0,2576.9,41.18831]
[1729694258132,7.89223567,2577.0,2576.9,41.18831]
[1729694260240,7.89223567,2577.0,2576.4,3.2078]
[1729694260241,11.38473567,2577.0,2576.4,3.2078]
[1729694260432,11.38473567,2577.0,2576.2,1.3766]
[1729694260433,3.03,2576.7,2576.6,0.38836]
[1729694261038,3.6245,2576.7,2576.6,0.38836]
[1729694261642,4.01284,2576.7,2576.6,0.38836]
[1729694261836,7.75443848,2576.7,2576.6,0.38836]
[1729694262034,8.14277848,2576.7,2576.6,0.38836]
[1729694262236,7.75443848,2576.7,2576.6,0.38836]
[1729694262533,8.14277848,2576.7,2576.6,0.38836]
[1729694262734,7.75443848,2576.7,2576.6,0.38836]
[1729694263141,8.14277848,2576.7,2576.6,0.38836]
[1729694263338,0.38836,2576.6,2576.5,41.18836]
[1729694263642,5.20885766,2576.6,2576.5,41.18836]
[1729694264245,4.82049766,2576.6,2576.5,41.18836]
[1729694264537,5.20885766,2576.6,2576.5,41.18836]
[1729694265238,4.82049766,2576.6,2576.5,41.18836]
[1729694265646,5.20885766,2576.6,2576.5,41.18836]
[1729694267341,4.19789766,2576.6,2576.5,41.18836]
[1729694268546,3.8093,2576.9,2576.8,0.38833]
[1729694268849,3.6315,2576.9,2576.8,0.38833]
[1729694269051,4.2338,2576.9,2576.8,0.38833]
[1729694269445,1.2038,2576.9,2576.8,0.38833]
[1729694270050,4.2338,2576.9,2576.8,0.38833]
[1729694270658,3.03,2577.1,2577.0,0.3883]
[1729694270849,4.2418,2577.1,2577.0,0.3883]
[1729694271044,8.33741932,2577.1,2577.0,0.3883]
[1729694272952,7.75071932,2577.1,2577.0,0.3883]
[1729694273159,3.6167,2577.3,2577.2,0.38827]
[1729694273354,4.2459,2577.3,2577.2,0.38827]
[1729694273552,8.53302833,2577.3,2577.2,0.38827]
[1729694274253,8.92127833,2577.3,2577.2,0.38827]
[1729694275351,8.92127833,2577.3,2576.9,0.38829]
[1729694275352,0.3883,2577.0,2576.9,0.38829]
[1729694275656,7.59289705,2577.0,2576.9,0.38829]
[1729694276158,0.38833,2576.9,2576.8,0.38832]
[1729694276454,8.67242988,2576.9,2576.8,0.38832]
[1729694278052,8.28409988,2576.9,2576.8,0.38832]
[1729694278461,7.69999988,2576.9,2576.8,0.38832]
[1729694280353,4.66999988,2576.9,2576.8,0.38832]
[1729694282267,8.08830988,2576.9,2576.8,0.38832]
[1729694283552,7.69999988,2576.9,2576.8,0.38832]
[1729694283959,8.08830988,2576.9,2576.8,0.38832]
[1729694284153,7.69999988,2576.9,2576.8,0.38832]
[1729694284663,8.08830988,2576.9,2576.8,0.38832]
[1729694284858,7.69999988,2576.9,2576.8,0.38832]
[1729694285056,4.05559988,2576.9,2576.8,0.38832]
[1729694285460,5.45921576,2577.0,2576.9,0.38831]
[1729694285759,0.6102,2577.0,2576.9,0.38831]
[1729694285967,4.95911575,2577.0,2576.9,0.38831]
[1729694286366,0.6292,2577.3,2577.2,0.38827]
[1729694286665,5.98666575,2577.3,2577.2,0.38827]
[1729694287161,5.59841575,2577.3,2577.2,0.38827]
[1729694287557,5.98666575,2577.3,2577.2,0.38827]
[1729694287963,0.38828,2577.2,2577.1,0.38827]
[1729694288161,3.03,2577.2,2577.1,0.38827]
[1729694288359,7.13616134,2577.2,2577.1,0.38827]
[1729694288562,4.10616134,2577.2,2577.1,0.38827]
[1729694290175,4.49443134,2577.2,2577.1,0.38827]
[1729694290468,0.3883,2577.1,2577.0,0.38829]
[1729694290865,4.49444134,2577.2,2577.1,0.38828]
[1729694291062,4.10616134,2577.2,2577.1,0.38828]
[1729694291873,0.3883,2577.1,2577.0,0.38829]
[1729694292064,3.4183,2577.1,2577.0,0.38829]
[1729694292264,7.57214976,2577.1,2577.0,0.38829]
[1729694297565,7.18384976,2577.1,2577.0,0.38829]
[1729694298275,4.15384976,2577.1,2577.0,0.38829]
[1729694298666,4.54212976,2577.1,2577.0,0.38829]
[1729694301575,7.57212976,2577.1,2577.0,0.38829]
[1729694301772,0.38832,2577.0,2576.6,0.97089]
[1729694301973,0.38833,2576.8,2576.7,0.38833]
[1729694302271,3.03,2576.7,2576.6,0.38836]
[1729694302474,3.2078,2577.5,2577.4,0.38824]
[1729694302867,7.46038397,2577.5,2577.4,0.38824]
[1729694303167,4.25258397,2577.5,2577.4,0.38824]
[1729694303473,4.37307797,2577.6,2577.2,1.94105]
[1729694303674,4.37307797,2577.6,2577.5,0.38822]
[1729694303870,1.8887,2577.7,2577.6,0.3882]
[1729694304075,1.2654,2577.7,2577.6,0.3882]
[1729694305077,0.38816,2577.9,2577.5,0.97056]
[1729694305268,1.2393,2577.9,2577.8,0.38817]
[1729694305473,5.72421405,2577.9,2577.8,0.38817]
[1729694311877,4.48491405,2577.9,2577.8,0.38817]
[1729694312077,3.2078,2578.9,2577.8,10.117]
[1729694312287,0.6156,2578.8,2578.7,0.38804]
[1729694312787,4.89290102,2578.8,2578.7,0.38804]
[1729694313186,4.27730102,2578.8,2578.7,0.38804]
[1729694313383,6.66483,2579.5,2579.4,0.38793]
[1729694313777,6.66483,2579.5,2579.1,0.38798]
[1729694313778,4.21304186,2579.2,2579.1,0.38798]
[1729694313978,7.45994186,2579.5,2579.1,41.18798]
[1729694314185,3.63483,2579.5,2579.4,0.38793]
[1729694314583,6.37869623,2579.5,2579.4,0.38793]
[1729694314786,5.99076623,2579.5,2579.4,0.38793]
[1729694320284,6.37868623,2579.5,2579.4,0.38793]
[1729694320478,5.99076623,2579.5,2579.0,0.96998]
[1729694320683,0.38793,2579.4,2579.2,0.38796]
[1729694320884,5.99076623,2579.5,2579.3,0.38794]
[1729694321089,0.38793,2579.4,2579.3,0.38794]
[1729694321282,4.4399825,2579.4,2579.3,0.38794]
[1729694321787,4.4399825,2579.4,2579.2,0.38795]
[1729694322180,4.4399825,2579.4,2579.3,0.38795]
[1729694322381,4.4399825,2579.4,2578.8,3.2078]
[1729694322382,7.0820525,2579.4,2578.8,3.2078]
[1729694322588,6.62575,2579.3,2579.2,0.38796]
[1729694322788,4.0520525,2579.4,2579.3,0.38795]
[1729694322789,4.4399925,2579.4,2579.3,0.38795]
[1729694322977,0.38794,2579.4,2579.3,0.38795]
[1729694323181,8.6735943,2579.4,2579.3,0.38795]
[1729694323388,0.38795,2579.3,2578.8,4.17786]
[1729694323695,6.2769,2579.5,2579.2,0.38795]
[1729694323696,4.9309,2579.5,2579.2,0.38795]
[1729694324087,4.74950199,2579.3,2579.2,0.38795]
[1729694324382,0.38795,2579.3,2579.2,0.38795]
[1729694324584,4.36155199,2579.3,2578.8,4.17786]
[1729694324889,4.36155199,2579.3,2579.2,0.38796]
[1729694324890,0.38795,2579.3,2579.2,0.38796]
[1729694325188,4.85416919,2579.3,2579.2,0.38796]
[1729694326100,8.06196919,2579.3,2579.2,0.38796]
[1729694327791,0.38797,2579.2,2579.1,0.38797]
[1729694327999,10.70401919,2579.3,2578.8,4.17786]
[1729694328197,6.62576,2579.3,2579.2,0.38796]
[1729694328397,6.62576,2579.3,2578.8,4.17786]
[1729694328398,4.10452201,2579.2,2578.8,4.17786]
[1729694328590,10.34232201,2579.3,2578.8,4.17786]
[1729694328891,3.2078,2579.3,2579.2,0.38796]
[1729694329292,7.28259785,2579.3,2579.2,0.38796]
[1729694329888,7.67054785,2579.3,2579.2,0.38796]
[1729694330190,7.28259785,2579.3,2579.2,0.38796]
[1729694330894,7.67054785,2579.3,2579.2,0.38796]
[1729694331298,7.28259785,2579.3,2579.2,0.38796]
[1729694333496,7.67054785,2579.3,2579.2,0.38796]
[1729694333795,11.15939785,2579.3,2579.2,0.38796]
[1729694333984,7.28259785,2579.3,2579.2,0.38796]
[1729694334191,4.07479785,2579.3,2579.2,0.38796]
[1729694335190,4.62437877,2579.4,2579.3,0.38795]
[1729694335390,0.38795,2579.4,2579.3,0.38795]
[1729694335600,8.50117877,2579.4,2579.3,0.38795]
[1729694335989,8.50117877,2579.4,2579.2,0.38795]
[1729694335990,0.38796,2579.3,2579.2,0.38795]
[1729694336390,4.45008764,2579.3,2579.2,0.38795]
[1729694340021,4.45008764,2579.3,2578.9,0.97002]
[1729694340190,0.38797,2579.2,2579.1,0.38797]
[1729694340593,0.38799,2579.1,2579.0,0.38798]
[1729694340794,0.6477,2579.1,2579.0,0.38798]
[1729694340996,4.72682894,2579.1,2579.0,0.38798]
[1729694341298,5.11480894,2579.1,2579.0,0.38798]
[1729694341897,4.72682894,2579.1,2579.0,0.38798]
[1729694344293,4.72682894,2579.1,2579.0,1.78798]
[1729694347197,4.07912894,2579.1,2579.0,5.66558]
[1729694347500,2.41713,2579.4,2579.3,0.38795]
[1729694347700,0.38795,2579.3,2579.2,1.78795]
[1729694347891,5.85943732,2579.3,2579.2,0.38796]
[1729694348097,1.78795,2579.3,2579.2,0.38796]
[1729694348298,6.03800478,2579.3,2579.2,0.38796]
[1729694349101,5.65005478,2579.3,2579.2,0.38796]
[1729694349302,6.03800478,2579.3,2579.2,0.38796]
[1729694350000,6.03800478,2579.3,2579.2,1.78796]
[1729694351199,5.65005478,2579.3,2579.2,1.78796]
[1729694352097,5.65005478,2579.3,2579.2,0.38796]
[1729694352805,5.65005478,2579.3,2578.7,3.2078]
[1729694352806,11.89674478,2579.3,2578.7,3.2078]
[1729694353008,1.4,2578.8,2578.5,0.38806]
[1729694353301,1.4,2578.8,2578.5,0.38807]
[1729694353302,4.99586,2578.6,2578.5,0.38807]
[1729694353707,9.28147022,2578.6,2578.5,0.38807]
[1729694353900,9.28146022,2578.6,2578.5,0.38807]
[1729694354303,8.89341022,2578.6,2578.5,0.38807]
[1729694354808,9.28146022,2578.6,2578.5,0.38807]
[1729694355308,8.89341022,2578.6,2578.5,0.38807]
[1729694355510,8.89341022,2578.6,2578.4,1.4]
[1729694355808,9.28148022,2578.6,2578.5,0.38807]
[1729694356003,0.38807,2578.5,2578.4,1.78807]
[1729694356406,1.78807,2578.5,2578.4,1.78807]
[1729694356908,1.4,2578.5,2578.4,1.78807]
[1729694357811,1.4,2578.5,2578.4,1.78808]
[1729694358613,1.78807,2578.5,2578.4,1.78808]
[1729694358911,1.4,2578.5,2578.4,1.78808]
[1729694359414,1.78807,2578.5,2578.4,1.78808]
[1729694359601,5.88016055,2578.5,2578.2,3.2078]
[1729694359802,1.4,2578.4,2578.2,3.2078]
[1729694360009,6.26823055,2578.5,2578.4,1.78808]
[1729694360314,1.78807,2578.5,2578.4,1.78808]
[1729694360502,5.87137495,2578.5,2578.4,1.78808]
[1729694361214,4.08330495,2578.5,2578.4,1.78808]
[1729694361417,5.48330495,2578.5,2578.4,0.38808]
[1729694363413,5.87137495,2578.5,2578.4,0.38808]
[1729694363937,5.48330495,2578.5,2578.4,0.38808]
[1729694364815,5.48330495,2578.5,2578.4,1.78808]
[1729694365018,4.08330495,2578.5,2578.4,5.66648]
[1729694365219,3.2434,2578.7,2578.6,0.38805]
[1729694365511,3.2434,2578.7,2578.6,1.78805]
[1729694366611,3.2434,2578.7,2578.6,0.38805]
[1729694368210,1.8434,2578.7,2578.6,1.78805]
[1729694368406,4.6078,2579.2,2578.8,0.38802]
[1729694368607,1.4,2579.1,2579.0,1.78799]
[1729694369223,1.8126,2579.2,2579.0,1.78799]
[1729694369224,3.2126,2579.2,2579.1,0.38798]
[1729694369719,3.60056,2579.2,2579.1,0.38798]
[1729694370324,3.2126,2579.2,2579.1,0.38798]
[1729694370615,3.60056,2579.2,2579.1,0.38798]
[1729694370915,8.00207173,2579.2,2579.1,0.38798]
[1729694372531,0.38799,2579.1,2579.0,0.38799]
[1729694372722,1.78799,2579.1,2579.0,0.38799]
[1729694372922,6.16064513,2579.1,2579.0,0.38799]
[1729694376320,6.16064513,2579.1,2578.8,4.6078]
[1729694376321,5.77265513,2579.1,2578.8,4.6078]
[1729694376523,5.77265513,2579.1,2578.8,4.99582]
[1729694376524,1.4,2578.9,2578.8,4.99582]
[1729694377519,1.4,2579.0,2578.9,0.38801]
[1729694377821,5.8452788,2579.1,2579.0,0.38799]
[1729694378125,1.4,2579.1,2579.0,0.38799]
[1729694378314,5.62552329,2579.1,2579.0,0.38799]
[1729694379824,1.78798,2579.1,2579.0,0.38799]
[1729694380816,0.388,2579.0,2578.9,0.388]
[1729694381017,1.788,2579.0,2578.9,0.388]
[1729694381219,5.96720718,2579.0,2578.9,0.388]
[1729694381618,5.96720718,2579.0,2578.9,0.38801]
[1729694384114,5.96720718,2579.0,2578.7,0.38803]
[1729694384115,0.38803,2578.8,2578.7,0.38803]
[1729694384313,1.78803,2578.8,2578.7,0.38803]
[1729694384514,5.91209847,2578.8,2578.7,0.38803]
[1729694385018,5.52406847,2578.8,2578.7,0.38803]
[1729694385420,6.16436847,2578.8,2578.7,0.38803]
[1729694385620,4.76436847,2578.8,2578.7,1.78803]
[1729694385814,1.4,2579.1,2578.7,8.4854]
[1729694386022,2.0403,2579.1,2579.0,0.38799]
[1729694386218,2.0403,2579.1,2579.0,1.78799]
[1729694386219,6.08340367,2579.1,2579.0,1.78799]
[1729694386417,4.68340367,2579.1,2579.0,1.78799]
[1729694386718,6.08340367,2579.1,2579.0,1.78799]
[1729694388415,6.08340367,2579.1,2579.0,0.38799]
[1729694391423,6.08340367,2579.1,2579.0,5.66559]
[1729694391728,2.0403,2579.1,2579.0,5.66559]
[1729694392324,2.0403,2579.1,2579.0,0.38799]
[1729694394420,5.11311446,2579.1,2579.0,0.38799]
[1729694394626,6.51311446,2579.1,2579.0,0.38799]
[1729694396932,6.90109446,2579.1,2579.0,0.38799]
[1729694397325,6.51311446,2579.1,2579.0,0.38799]
[1729694397525,6.90109446,2579.1,2579.0,0.38799]
[1729694400434,6.51311446,2579.1,2579.0,0.38799]
[1729694405236,5.11311446,2579.1,2579.0,1.78799]
[1729694405532,4.47281446,2579.1,2579.0,5.66559]
[1729694405727,1.2103,2579.2,2579.1,0.38798]
[1729694405728,0.6024,2579.2,2579.1,0.38798]
[1729694405932,0.6024,2579.2,2579.1,5.66558]
[1729694406129,3.8264,2579.4,2579.3,0.38795]
[1729694406325,4.4856,2579.4,2579.3,42.58795]
[1729694407828,5.8856,2579.4,2579.3,42.58795]
[1729694408049,0.38802,2579.0,2578.7,0.97008]
[1729694408233,0.38802,2579.0,2578.7,1.78804]
[1729694408234,1.4,2578.8,2578.7,1.78804]
[1729694408731,1.4,2578.8,2578.7,5.66564]
[1729694409638,1.78802,2578.8,2578.7,5.66564]
[1729694409831,1.4,2578.8,2578.7,5.66564]
[1729694410033,1.78802,2578.8,2578.7,5.66564]
[1729694410232,1.4,2578.8,2578.7,5.66564]
[1729694410435,1.78802,2578.8,2578.7,5.66564]
[1729694410833,1.4,2578.8,2578.7,5.66564]
[1729694411336,1.78802,2578.8,2578.7,5.66564]
[1729694411535,1.4,2578.8,2578.7,1.78804]
[1729694411741,1.4,2578.8,2578.7,5.66564]
[1729694411936,3.3498,2578.9,2578.7,5.2776]
[1729694412142,3.73782,2578.9,2578.8,1.78802]
[1729694414242,3.73782,2578.9,2578.8,0.38802]
[1729694414539,7.99620428,2578.9,2578.8,0.38802]
[1729694414939,7.99620428,2578.9,2578.6,43.17014]
[1729694414940,7.60818428,2578.9,2578.6,42.2]
[1729694415136,1.4,2578.7,2578.6,42.58805]
[1729694416234,1.78803,2578.8,2578.6,42.2]
[1729694416435,1.4,2578.8,2578.7,0.38804]
[1729694416631,1.4,2578.8,2578.7,1.78804]
[1729694416632,1.78802,2578.8,2578.7,1.78804]
[1729694417234,1.78802,2578.8,2578.7,0.38804]
[1729694417434,5.9875899,2578.8,2578.7,0.38804]
[1729694417933,0.38804,2578.7,2578.5,0.38806]
[1729694418240,6.0947847,2578.6,2578.5,0.38806]